[Event "Serbian League Women 2024"]
[Site "Bajina Basta"]
[Date "2024.10.03"]
[Round "7.1"]
[White "Pogorelskikh, Sofia"]
[Black "Savitha Shri B"]
[Result "0-1"]
[ECO "C63"]
[WhiteElo "2176"]
[BlackElo "2348"]
[Annotator "TA"]
[PlyCount "56"]
[EventDate "2024.09.26"]
[EventType "team-tourn"]
[EventCountry "SRB"]
[SourceTitle "playchess.com"]
[Source "ChessBase"]
[SourceQuality "1"]
[TimeControl "40/5400+30:1800+30"]

{[%evp 14,56,36,20,51,-10,0,-12,0,-2,-4,-5,0,-38,1,-55,-50,-229,-221,-326,-337,-310,-325,-331,-323,-316,-335,-335,-318,-323,-320,-361,-271,-428,-389,-413,-418,-429,-432,-472,-481,-481,-475,-466,-470]} 1. e4 {[%emt 0:00:07]} e5 {[%emt 0:00:41]} 2. Nf3 {[%emt 0:00:14]} Nc6 {[%emt 0:00:06]} 3. Bb5 {[%emt 0:00:28]} f5 {[%emt 0:00:06]} 4. d3 {[%emt 0:02:00]} fxe4 {[%emt 0:00:07]} 5. dxe4 {[%emt 0:00:41]} Nf6 {[%emt 0:00:08][%cal Bg8f6,Bf6h5,Bh5f4,Bf4g2][%mdl 32]} 6. O-O {[%emt 0:01:58]} d6 {[%emt 0:00:13]} 7. Nc3 {[%emt 0:01:58]} Be7 {[%emt 0:00:54]} 8. Qd3 {[%emt 0:03:08]} O-O {[%emt 0:01:13]} 9. a3 {[%emt 0:11:26]} (9. Bxc6 $14 bxc6 10. Qc4+ Kh8 11. Qxc6) 9... Kh8 {[%emt 0:01:26]} 10. Bc4 {[%emt 0:03:25]} Nh5 {[%emt 0:09:20] The position is equal.} 11. Nd5 {[%emt 0:06:21]} Bg4 {[%emt 0:03:42]} 12. Nxe7 {[%emt 0:18:59]} Qxe7 {[%emt 0:00:56]} 13. Bg5 {[%emt 0:06:34]} Qd7 {[%emt 0:17:53] White must now prevent ...Bxf3.} (13... Rxf3 $5 14. gxf3 Qxg5 15. fxg4 b5 (15... Qxg4+ 16. Kh1 $14) 16. Bxb5 Nd4 $15 (16... Qxg4+ 17. Kh1 $16)) 14. Nh4 {[%emt 0:05:11]} ({White should try} 14. Nd2 $11) 14... Nf4 $15 {[%emt 0:01:56]} 15. Qd2 {[%emt 0:06:57] [#]} (15. Bxf4 $15 Rxf4 16. g3) 15... Nxg2 $1 $19 {[%emt 0:12:25]} 16. Kxg2 {[%emt 0:05:14] [#]} (16. Nxg2 Bf3 17. Rfe1 Qg4 $19) (16. f4 $142 Nxf4 17. Bxf4 exf4 (17... Rxf4 $2 18. Rxf4 exf4 19. Qxf4 $19) 18. Rxf4) 16... Bf3+ $1 {[%emt 0:00:50][%mdl 512]} 17. Nxf3 {[%emt 0:00:20]} Qg4+ {[%emt 0:00:03]} 18. Kh1 {[%emt 0:00:11] Threatens to win with Be2.} Qxf3+ {[%emt 0:00:02]} (18... Rxf3 $2 19. Rg1 Qh3 20. Rg2 $18) 19. Kg1 {[%emt 0:00:08] Hoping for Qd1.} Qg4+ {[%emt 0:00:03]} (19... Qxe4 $2 20. Bd5 Qf5 21. c3 $18) 20. Kh1 {[%emt 0:00:08][%cal Of2f3]} Qxe4+ {[%emt 0:00:09]} 21. f3 {[%emt 0:00:13]} Qxc4 {[%emt 0:00:28]} 22. c3 {[%emt 0:00:56]} e4 {[%emt 0:02:15]} 23. f4 {[%emt 0:00:26]} (23. Qg2 $142) 23... Rae8 {[%emt 0:01:27]} 24. Qe3 {[%emt 0:00:43] [#]} Ne5 $1 {[%emt 0:05:42][%mdl 512]} 25. b3 {[%emt 0:03:59]} Qd3 {[%emt 0:01:51] Black is clearly winning.} ({And not} 25... Qxb3 26. fxe5 Qb5 27. c4 Qxe5 (27... Qxc4 28. Rf4 $17) 28. Rxf8+ Rxf8 29. Rg1 $11) 26. Rae1 {[%emt 0:02:08]} Qxe3 {[%emt 0:01:49]} 27. Rxe3 {[%emt 0:00:06]} Nf3 {[%emt 0:01:00] And now ...Nxg5 would win.} 28. Be7 {[%emt 0:02:19]} Rxf4 {[%emt 0:01:06] White got outplayed after the opening.   Weighted Error Value: White=0.46/Black=0.11 (very precise) .  Loses game:     	White=1     	---        Mistake:       	White=4     	---        Inaccurate:     	White=1     	Black=1      OK:         	White=4     	Black=12     Best:        	White=1     	Black=1      Strong:       	---       	Black=1      Brilliant:      	---       	Black=1} ({Much less strong is} 28... Rxe7 29. Rfxf3 Rf5 30. h4) 0-1

[Event "Serbian League Women 2024"]
[Site "Bajina Basta"]
[Date "2024.10.03"]
[Round "7.2"]
[White "Toncheva, Nadya"]
[Black "Zherebtsova, Alexandra"]
[Result "1-0"]
[ECO "D94"]
[WhiteElo "2301"]
[BlackElo "2239"]
[Annotator "RC"]
[PlyCount "67"]
[EventDate "2024.09.26"]
[EventType "team-tourn"]
[EventCountry "SRB"]
[SourceTitle "playchess.com"]
[Source "ChessBase"]
[SourceQuality "1"]
[TimeControl "40/5400+30:1800+30"]

1. d4 {[%emt 0:01:50]} d5 {[%emt 0:00:49]} 2. c4 {[%emt 0:00:04]} c5 {[%emt 0:01:02]} 3. e3 {[%emt 0:07:48]} cxd4 {[%emt 0:00:20]} 4. exd4 {[%emt 0:00:16]} Nf6 {[%emt 0:00:21]} 5. Nc3 {[%emt 0:00:39]} Nc6 {[%emt 0:00:40]} 6. Be3 {[%emt 0:06:50]} g6 {[%emt 0:07:06]} 7. Nf3 {[%emt 0:10:11]} Bg7 {[%emt 0:01:25]} 8. Be2 {[%emt 0:00:10]} O-O {[%emt 0:01:14]} 9. O-O {[%emt 0:00:14]} Be6 {[%emt 0:32:18]} 10. c5 {[%emt 0:00:38]} Ne4 {[%emt 0:02:25]} 11. Qa4 {[%emt 0:04:03]} Nxc3 {[%emt 0:05:35]} 12. bxc3 {[%emt 0:00:06]} Qc7 {[%emt 0:00:35]} 13. Rab1 {[%emt 0:11:11]} Rad8 {[%emt 0:13:18]} 14. Rfd1 {[%emt 0:08:49]} h6 {[%emt 0:01:36]} 15. Rb2 {[%emt 0:03:08]} Bc8 {[%emt 0:02:05]} 16. c4 {[%emt 0:06:34]} e5 {[%emt 0:12:47]} 17. Rbd2 {[%emt 0:08:46]} exd4 {[%emt 0:05:22]} 18. Nxd4 {[%emt 0:00:06]} Nxd4 {[%emt 0:00:34]} 19. Bxd4 {[%emt 0:00:04]} dxc4 {[%emt 0:00:42]} 20. Bxg7 {[%emt 0:04:43]} Kxg7 {[%emt 0:02:45]} 21. Qxc4 {[%emt 0:00:22]} Rxd2 {[%emt 0:00:16]} 22. Qc3+ {[%emt 0:06:35]} Kh7 {[%emt 0:00:30]} 23. Rxd2 {[%emt 0:00:11]} Rd8 {[%emt 0:00:50]} 24. Rxd8 {[%emt 0:00:12]} Qxd8 {[%emt 0:00:06]} 25. Bf3 {[%emt 0:00:52]} Qe7 {[%emt 0:01:37]} 26. h3 {[%emt 0:00:27]} Be6 {[%emt 0:02:25]} 27. Qe5 {[%emt 0:00:36]} Qd7 {[%emt 0:01:13]} 28. a3 {[%emt 0:02:35]} Qc8 {[%emt 0:02:20]} 29. Qd6 {[%emt 0:01:03]} Bd7 {[%emt 0:02:12]} 30. Qe7 {[%emt 0:00:29]} Kg7 {[%emt 0:00:25]} 31. Bd5 {[%emt 0:00:14]} Qe8 {[%emt 0:00:29]} 32. Qxe8 {[%emt 0:00:25]} Bxe8 {[%emt 0:00:03]} 33. Bxb7 {[%emt 0:00:06]} Kf6 {[%emt 0:00:10]} 34. c6 {[%emt 0:00:23]} 1-0

[Event "Serbian League Women 2024"]
[Site "Bajina Basta"]
[Date "2024.10.03"]
[Round "7.3"]
[White "Ibrahimova, Sabina"]
[Black "Grozdanovic, Anastasia"]
[Result "1-0"]
[ECO "D34"]
[WhiteElo "2199"]
[BlackElo "2041"]
[Annotator "RC"]
[PlyCount "111"]
[EventDate "2024.09.26"]
[EventType "team-tourn"]
[EventCountry "SRB"]
[SourceTitle "playchess.com"]
[Source "ChessBase"]
[SourceQuality "1"]
[TimeControl "40/5400+30:1800+30"]

1. c4 {[%emt 0:01:01]} e6 {[%emt 0:00:07]} 2. Nc3 {[%emt 0:00:08]} d5 {[%emt 0:00:05]} 3. d4 {[%emt 0:00:08]} c5 {[%emt 0:00:03]} 4. cxd5 {[%emt 0:00:34]} exd5 {[%emt 0:00:05]} 5. Nf3 {[%emt 0:01:37]} Nc6 {[%emt 0:00:05]} 6. Bf4 {[%emt 0:05:11]} c4 {[%emt 0:00:52]} 7. g3 {[%emt 0:04:38]} Nf6 {[%emt 0:00:42]} 8. Bg2 {[%emt 0:00:10]} Be7 {[%emt 0:02:33]} 9. O-O {[%emt 0:00:23]} O-O {[%emt 0:00:58]} 10. Ne5 {[%emt 0:06:41]} Be6 {[%emt 0:03:35]} 11. Rc1 {[%emt 0:08:23]} Rc8 {[%emt 0:07:02]} 12. Nxc4 {[%emt 0:10:30]} Nxd4 {[%emt 0:14:17]} 13. Ne3 {[%emt 0:14:18]} Qb6 {[%emt 0:03:25]} 14. Be5 {[%emt 0:05:55]} Nc6 {[%emt 0:06:19]} 15. Bxf6 {[%emt 0:02:38]} Bxf6 {[%emt 0:01:20]} 16. Nexd5 {[%emt 0:00:13]} Bxd5 {[%emt 0:08:40]} 17. Nxd5 {[%emt 0:01:12]} Qxb2 {[%emt 0:00:25]} 18. Rb1 {[%emt 0:00:12]} Qxa2 {[%emt 0:02:07]} 19. Nxf6+ {[%emt 0:01:33]} gxf6 {[%emt 0:00:05]} 20. e3 {[%emt 0:09:41]} b6 {[%emt 0:09:59]} 21. Bh3 {[%emt 0:06:59]} Rcd8 {[%emt 0:05:56]} 22. Qg4+ {[%emt 0:05:26]} Kh8 {[%emt 0:00:05]} 23. Qh4 {[%emt 0:00:38]} Kg7 {[%emt 0:00:06]} 24. Bf5 {[%emt 0:01:03]} h6 {[%emt 0:01:07]} 25. Qg4+ {[%emt 0:04:16]} Kh8 {[%emt 0:00:16]} 26. Ra1 {[%emt 0:04:02]} Qb2 {[%emt 0:04:33]} 27. Be4 {[%emt 0:00:16]} Ne7 {[%emt 0:06:25]} 28. Qh5 {[%emt 0:04:28]} Kg7 {[%emt 0:02:39]} 29. Rxa7 {[%emt 0:00:04]} f5 {[%emt 0:02:23]} 30. Rxe7 {[%emt 0:01:31]} fxe4 {[%emt 0:01:17]} 31. Rxe4 {[%emt 0:00:26]} Rd6 {[%emt 0:01:38]} 32. Rd1 {[%emt 0:01:22]} Rf6 {[%emt 0:02:50]} 33. Qg4+ {[%emt 0:00:14]} Rg6 {[%emt 0:01:09]} 34. Qf3 {[%emt 0:00:36]} Rc8 {[%emt 0:01:53]} 35. Rf4 {[%emt 0:00:49]} Qb3 {[%emt 0:01:26]} 36. Rd7 {[%emt 0:00:30]} Rf8 {[%emt 0:00:49]} 37. Rg4 {[%emt 0:00:24]} Qe6 {[%emt 0:01:19]} 38. Rxg6+ {[%emt 0:00:22]} Qxg6 {[%emt 0:00:04]} 39. Rd4 {[%emt 0:00:27]} Qe6 {[%emt 0:01:43]} 40. Re4 {[%emt 0:00:49]} Qd6 {[%emt 0:00:37]} 41. Rd4 {[%emt 0:30:35]} Qe6 {[%emt 0:31:02]} 42. Qf4 {[%emt 0:00:00]} Rc8 {[%emt 0:00:00]} 43. Rd6 {[%emt 0:00:00]} Qh3 {[%emt 0:00:00]} 44. Qf6+ {[%emt 0:00:00]} Kg8 {[%emt 0:00:00]} 45. Rd8+ {[%emt 0:00:00]} Rxd8 {[%emt 0:00:00]} 46. Qxd8+ {[%emt 0:00:00]} Kg7 {[%emt 0:00:00]} 47. Qxb6 {[%emt 0:00:00]} Qh5 {[%emt 0:00:00]} 48. Qd4+ {[%emt 0:00:00]} Kh7 {[%emt 0:00:00]} 49. Kg2 {[%emt 0:00:00]} Qa5 {[%emt 0:00:00]} 50. e4 {[%emt 0:00:00]} Qc7 {[%emt 0:00:00]} 51. Qf6 {[%emt 0:00:00]} Qa7 {[%emt 0:00:00]} 52. Kh3 {[%emt 0:00:00]} Qb7 {[%emt 0:00:00]} 53. f3 {[%emt 0:00:00]} Qa7 {[%emt 0:00:00]} 54. Kh4 {[%emt 0:00:00]} Qa2 {[%emt 0:00:00]} 55. h3 {[%emt 0:00:00]} Qb3 {[%emt 0:00:00]} 56. Kh5 {[%emt 0:00:00]} 1-0

[Event "Serbian League Women 2024"]
[Site "Bajina Basta"]
[Date "2024.10.03"]
[Round "7.4"]
[White "Mihajlovic, Milena"]
[Black "Djukic, Sandra"]
[Result "1-0"]
[ECO "D24"]
[WhiteElo "2065"]
[BlackElo "2126"]
[Annotator "NA RC"]
[PlyCount "69"]
[EventDate "2024.09.26"]
[EventType "team-tourn"]
[EventCountry "SRB"]
[SourceTitle "playchess.com"]
[Source "ChessBase"]
[SourceQuality "1"]
[TimeControl "40/5400+30:1800+30"]

1. d4 {[%emt 0:10:16]} Nf6 {[%emt 0:00:10]} 2. Nf3 {[%emt 0:00:04]} d5 {[%emt 0:00:25]} 3. c4 {[%emt 0:01:00]} dxc4 {[%emt 0:00:07]} 4. Nc3 {[%emt 0:02:27]} e6 {[%emt 0:01:03]} 5. e4 {[%emt 0:05:40]} b5 {[%emt 0:03:51]} 6. Bg5 {[%emt 0:01:32]} b4 {[%emt 0:20:41]} 7. Na4 {[%emt 0:05:55]} h6 {[%emt 0:25:07]} 8. Bxf6 {[%emt 0:02:42]} Qxf6 {[%emt 0:00:59]} 9. Bxc4 {[%emt 0:04:25]} Be7 {[%emt 0:09:12]} 10. Qe2 {[%emt 0:06:54]} Bd7 {[%emt 0:21:58]} 11. e5 {[%emt 0:12:10]} Qf4 {[%emt 0:00:26]} 12. g3 {[%emt 0:01:28]} Qf5 {[%emt 0:00:37]} 13. Bd3 {[%emt 0:02:16]} Qxd3 {[%emt 0:11:49]} 14. Qxd3 {[%emt 0:00:11]} Bxa4 {[%emt 0:00:03]} 15. Rc1 {[%emt 0:07:06]} c6 {[%emt 0:00:57]} 16. Qe4 {[%emt 0:02:54]} O-O {[%emt 0:00:26]} 17. h4 {[%emt 0:01:37]} g6 {[%emt 0:00:34]} 18. h5 {[%emt 0:02:59]} g5 {[%emt 0:00:01]} 19. Nh2 {[%emt 0:00:20]} Nd7 {[%emt 0:00:08]} 20. Ng4 {[%emt 0:01:22]} Kg7 {[%emt 0:00:08]} 21. f4 {[%emt 0:01:26]} c5 {[%emt 0:00:03]} 22. b3 {[%emt 0:08:41]} Bb5 {[%emt 0:00:11]} 23. f5 {[%emt 0:00:15]} exf5 {[%emt 0:00:31]} 24. Qxf5 {[%emt 0:18:50]} Rae8 {[%emt 0:00:22]} 25. Kd2 {[%emt 0:00:00]} Bd8 {[%emt 0:02:06]} 26. d5 {[%emt 0:00:00]} Bc7 {[%emt 0:01:03]} 27. Rhe1 {[%emt 0:00:00]} Rd8 {[%emt 0:00:28]} 28. e6 {[%emt 0:00:00]} fxe6 {[%emt 0:00:16]} 29. Qg6+ {[%emt 0:00:00]} Kh8 {[%emt 0:00:01]} 30. Qxh6+ {[%emt 0:00:00]} Kg8 {[%emt 0:00:02]} 31. Qxg5+ {[%emt 0:00:00]} Kh8 {[%emt 0:00:01]} 32. Rxe6 {[%emt 0:00:00]} Rf7 {[%emt 0:00:07]} 33. Rh6+ {[%emt 0:00:00]} Rh7 {[%emt 0:00:01]} 34. Rxh7+ {[%emt 0:00:00]} Kxh7 {[%emt 0:00:02]} 35. Re1 {[%emt 0:00:00]} 1-0

[Event "Serbian League Women 2024"]
[Site "Bajina Basta"]
[Date "2024.10.03"]
[Round "7.5"]
[White "Osmak, Yuliia"]
[Black "Garifullina, Leya"]
[Result "1/2-1/2"]
[ECO "E17"]
[WhiteElo "2471"]
[BlackElo "2438"]
[Annotator "ChessBase"]
[PlyCount "316"]
[EventDate "2024.09.26"]
[EventType "team-tourn"]
[EventCountry "SRB"]
[SourceTitle "playchess.com"]
[Source "ChessBase"]
[SourceQuality "1"]
[TimeControl "40/5400+30:1800+30"]

1. Nf3 {[%emt 0:02:12]} d5 {[%emt 0:00:07]} 2. g3 {[%emt 0:00:08]} Nf6 {[%emt 0:00:17]} 3. Bg2 {[%emt 0:00:08]} e6 {[%emt 0:00:05]} 4. O-O {[%emt 0:00:08]} Be7 {[%emt 0:00:06]} 5. b3 {[%emt 0:00:16]} O-O {[%emt 0:00:30]} 6. c4 {[%emt 0:00:36]} b6 {[%emt 0:00:09]} 7. d4 {[%emt 0:00:13]} Bb7 {[%emt 0:02:56]} 8. Nc3 {[%emt 0:00:09]} Nbd7 {[%emt 0:05:10]} 9. Bb2 {[%emt 0:00:14]} c5 {[%emt 0:01:32]} 10. Ne1 {[%emt 0:00:16]} Rc8 {[%emt 0:03:15]} 11. Rc1 {[%emt 0:00:19]} Re8 {[%emt 0:02:09]} 12. cxd5 {[%emt 0:11:35]} exd5 {[%emt 0:00:37]} 13. Nd3 {[%emt 0:01:25]} Bd6 {[%emt 0:08:18]} 14. e3 {[%emt 0:20:08]} Qe7 {[%emt 0:12:57]} 15. Ba3 {[%emt 0:13:21]} Ba6 {[%emt 0:13:29]} 16. dxc5 {[%emt 0:09:13]} bxc5 {[%emt 0:02:51]} 17. Nxd5 {[%emt 0:07:09]} Nxd5 {[%emt 0:00:07]} 18. Bxd5 {[%emt 0:00:03]} Nb6 {[%emt 0:02:04]} 19. Bg2 {[%emt 0:15:32]} Rcd8 {[%emt 0:04:10]} 20. Qc2 {[%emt 0:00:33]} c4 {[%emt 0:01:55]} 21. Bxd6 {[%emt 0:00:12]} Qxd6 {[%emt 0:00:08]} 22. Nf4 {[%emt 0:01:29]} cxb3 {[%emt 0:00:06]} 23. Qxb3 {[%emt 0:00:15]} Bxf1 {[%emt 0:00:08]} 24. Rxf1 {[%emt 0:00:38]} Qc5 {[%emt 0:01:19]} 25. Qb2 {[%emt 0:03:25]} Qa5 {[%emt 0:01:37]} 26. a3 {[%emt 0:02:40]} Rd2 {[%emt 0:00:52]} 27. Qb4 {[%emt 0:00:07]} Qxb4 {[%emt 0:00:52]} 28. axb4 {[%emt 0:00:02]} Red8 {[%emt 0:03:59]} 29. Bf3 {[%emt 0:01:58]} Nc4 {[%emt 0:01:02]} 30. h4 {[%emt 0:02:03]} Ne5 {[%emt 0:00:51]} 31. Be2 {[%emt 0:00:12]} h6 {[%emt 0:00:15]} 32. h5 {[%emt 0:00:08]} g5 {[%emt 0:04:30]} 33. hxg6 {[%emt 0:00:04]} fxg6 {[%emt 0:00:05]} 34. Ra1 {[%emt 0:01:29]} R8d6 {[%emt 0:04:38]} 35. Ra5 {[%emt 0:07:23]} Nc6 {[%emt 0:00:19]} 36. Bc4+ {[%emt 0:00:03]} Kh8 {[%emt 0:00:59]} 37. Ra4 {[%emt 0:01:00]} g5 {[%emt 0:00:50]} 38. Nh5 {[%emt 0:01:59]} Rc2 {[%emt 0:00:59]} 39. Bb5 {[%emt 0:00:35]} Ne5 {[%emt 0:01:34]} 40. Rxa7 {[%emt 0:00:12]} Rd1+ {[%emt 0:02:09]} 41. Kg2 {[%emt 0:02:15]} Rcc1 {[%emt 0:00:52]} 42. Ra8+ {[%emt 0:01:17]} Kh7 {[%emt 0:00:04]} 43. Ra7+ {[%emt 0:00:23]} Kg6 {[%emt 0:00:36]} 44. Be8+ {[%emt 0:01:38]} Kf5 {[%emt 0:00:06]} 45. Ng7+ {[%emt 0:13:38]} Ke4 {[%emt 0:02:01]} 46. f3+ {[%emt 0:00:11]} Kxe3 {[%emt 0:01:21]} 47. Nf5+ {[%emt 0:00:08]} Kd2 {[%emt 0:00:10]} 48. Ra2+ {[%emt 0:04:28]} Kc3 {[%emt 0:00:05]} 49. Nxh6 {[%emt 0:03:26]} Rg1+ {[%emt 0:00:11]} 50. Kh3 {[%emt 0:00:03]} Kxb4 {[%emt 0:03:06]} 51. Bh5 {[%emt 0:04:59]} Rc7 {[%emt 0:01:16]} 52. Kh2 {[%emt 0:00:56]} Re1 {[%emt 0:00:41]} 53. f4 {[%emt 0:03:07]} gxf4 {[%emt 0:00:14]} 54. gxf4 {[%emt 0:00:04]} Rh7 {[%emt 0:00:11]} 55. Ra6 {[%emt 0:00:19]} Nd3 {[%emt 0:02:41]} 56. Bf3 {[%emt 0:00:40]} Nc5 {[%emt 0:03:07]} 57. Rb6+ {[%emt 0:00:08]} Ka5 {[%emt 0:01:13]} 58. Rc6 {[%emt 0:00:15]} Kb5 {[%emt 0:00:50]} 59. Kg3 {[%emt 0:01:36]} Rg7+ {[%emt 0:00:04]} 60. Ng4 {[%emt 0:00:46]} Rg1+ {[%emt 0:00:07]} 61. Kh3 {[%emt 0:00:15]} Nd3 {[%emt 0:01:56]} 62. Rh6 {[%emt 0:00:36]} Nxf4+ {[%emt 0:00:41]} 63. Kh2 {[%emt 0:00:14]} Re1 {[%emt 0:00:56]} 64. Kg3 {[%emt 0:00:28]} Nd3 {[%emt 0:01:56]} 65. Rd6 {[%emt 0:00:39]} Nc5 {[%emt 0:00:37]} 66. Kf2 {[%emt 0:00:37]} Ra1 {[%emt 0:00:37]} 67. Ne5 {[%emt 0:00:34]} Ra2+ {[%emt 0:00:09]} 68. Be2+ {[%emt 0:00:35]} Ka5 {[%emt 0:01:38]} 69. Rc6 {[%emt 0:00:36]} Kb4 {[%emt 0:00:47]} 70. Kf3 {[%emt 0:00:20]} Ra3+ {[%emt 0:01:14]} 71. Kf4 {[%emt 0:00:09]} Rg8 {[%emt 0:00:46]} 72. Rf6 {[%emt 0:00:36]} Kc3 {[%emt 0:00:34]} 73. Bf3 {[%emt 0:00:34]} Re8 {[%emt 0:01:10]} 74. Rc6 {[%emt 0:00:33]} Rf8+ {[%emt 0:00:06]} 75. Ke3 {[%emt 0:00:51]} Kb4+ {[%emt 0:00:07]} 76. Kd4 {[%emt 0:00:32]} Rd8+ {[%emt 0:00:40]} 77. Bd5 {[%emt 0:00:02]} Nb3+ {[%emt 0:00:16]} 78. Ke4 {[%emt 0:00:10]} Nd2+ {[%emt 0:00:02]} 79. Kd4 {[%emt 0:00:12]} Ra5 {[%emt 0:02:22]} 80. Nd3+ {[%emt 0:00:32]} Ka4 {[%emt 0:01:16]} 81. Nc5+ {[%emt 0:00:15]} Ka3 {[%emt 0:00:09]} 82. Ra6 {[%emt 0:01:40]} Nb3+ {[%emt 0:04:33]} 83. Ke5 {[%emt 0:00:17]} Rxa6 {[%emt 0:02:59]} 84. Nxa6 {[%emt 0:00:03]} Nc1 {[%emt 0:00:27]} 85. Bc4 {[%emt 0:00:27]} Ka4 {[%emt 0:00:10]} 86. Nc7 {[%emt 0:00:50]} Kb4 {[%emt 0:00:04]} 87. Be6 {[%emt 0:00:19]} Nd3+ {[%emt 0:00:05]} 88. Kf6 {[%emt 0:00:40]} Kc5 {[%emt 0:00:36]} 89. Bf5 {[%emt 0:00:30]} Rf8+ {[%emt 0:00:42]} 90. Kg5 {[%emt 0:00:17]} Rg8+ {[%emt 0:00:05]} 91. Kf6 {[%emt 0:00:09]} Nb4 {[%emt 0:00:02]} 92. Ke5 {[%emt 0:00:46]} Nc6+ {[%emt 0:00:16]} 93. Ke4 {[%emt 0:00:09]} Rg1 {[%emt 0:00:12]} 94. Kf4 {[%emt 0:01:14]} Re1 {[%emt 0:00:18]} 95. Ne6+ {[%emt 0:00:50]} Kd6 {[%emt 0:00:13]} 96. Ng5 {[%emt 0:00:20]} Nd4 {[%emt 0:01:27]} 97. Be4 {[%emt 0:00:21]} Rf1+ {[%emt 0:00:24]} 98. Ke3 {[%emt 0:00:14]} Nb3 {[%emt 0:00:06]} 99. Nf3 {[%emt 0:00:09]} Nc5 {[%emt 0:00:02]} 100. Bg6 {[%emt 0:00:41]} Rh1 {[%emt 0:00:24]} 101. Bf5 {[%emt 0:00:26]} Kd5 {[%emt 0:00:20]} 102. Bg6 {[%emt 0:00:10]} Ke6 {[%emt 0:00:29]} 103. Bc2 {[%emt 0:00:31]} Ra1 {[%emt 0:00:14]} 104. Kd4 {[%emt 0:00:23]} Kd6 {[%emt 0:00:06]} 105. Ng5 {[%emt 0:00:20]} Ra2 {[%emt 0:00:56]} 106. Ne4+ {[%emt 0:00:31]} Nxe4 {[%emt 0:00:03]} 107. Bxe4 {[%emt 0:00:03]} Ra4+ {[%emt 0:00:02]} 108. Kd3 {[%emt 0:00:27]} Ke5 {[%emt 0:00:24]} 109. Bc6 {[%emt 0:00:15]} Ra1 {[%emt 0:00:05]} 110. Bb5 {[%emt 0:00:37]} Rc1 {[%emt 0:00:45]} 111. Bc4 {[%emt 0:00:08]} Rb1 {[%emt 0:00:12]} 112. Bf7 {[%emt 0:00:33]} Rf1 {[%emt 0:00:17]} 113. Bg8 {[%emt 0:00:22]} Rd1+ {[%emt 0:00:55]} 114. Kc4 {[%emt 0:00:47]} Rd4+ {[%emt 0:00:05]} 115. Kc3 {[%emt 0:00:12]} Rg4 {[%emt 0:00:23]} 116. Bf7 {[%emt 0:00:41]} Rg7 {[%emt 0:00:22]} 117. Ba2 {[%emt 0:00:21]} Rb7 {[%emt 0:00:25]} 118. Bc4 {[%emt 0:00:43]} Ke4 {[%emt 0:00:06]} 119. Be6 {[%emt 0:01:32]} Rc7+ {[%emt 0:00:11]} 120. Kb3 {[%emt 0:00:26]} Kd4 {[%emt 0:00:04]} 121. Bf5 {[%emt 0:00:22]} Rc3+ {[%emt 0:00:33]} 122. Kb2 {[%emt 0:00:34]} Kc4 {[%emt 0:00:04]} 123. Be6+ {[%emt 0:00:41]} Kb4 {[%emt 0:00:02]} 124. Bd5 {[%emt 0:00:48]} Rd3 {[%emt 0:00:04]} 125. Be4 {[%emt 0:00:27]} Rd2+ {[%emt 0:00:05]} 126. Ka1 {[%emt 0:00:14]} Kb3 {[%emt 0:01:04]} 127. Bf5 {[%emt 0:00:13]} Rd6 {[%emt 0:00:09]} 128. Bh7 {[%emt 0:00:35]} Rd8 {[%emt 0:01:02]} 129. Bg6 {[%emt 0:00:15]} Rf8 {[%emt 0:00:08]} 130. Be4 {[%emt 0:00:13]} Rf1+ {[%emt 0:03:15]} 131. Bb1 {[%emt 0:00:03]} Rf4 {[%emt 0:00:21]} 132. Bg6 {[%emt 0:00:08]} Rf6 {[%emt 0:00:54]} 133. Be4 {[%emt 0:00:21]} Ra6+ {[%emt 0:00:53]} 134. Kb1 {[%emt 0:00:03]} Rd6 {[%emt 0:00:08]} 135. Bc2+ {[%emt 0:00:42]} Kc3 {[%emt 0:00:08]} 136. Bf5 {[%emt 0:00:15]} Rb6+ {[%emt 0:00:08]} 137. Ka1 {[%emt 0:00:08]} Rf6 {[%emt 0:01:04]} 138. Be4 {[%emt 0:00:12]} Rf4 {[%emt 0:00:07]} 139. Bg6 {[%emt 0:00:54]} Kb3 {[%emt 0:00:07]} 140. Bh7 {[%emt 0:00:25]} Ra4+ {[%emt 0:01:03]} 141. Kb1 {[%emt 0:00:03]} Rh4 {[%emt 0:00:05]} 142. Bc2+ {[%emt 0:00:18]} Kc3 {[%emt 0:00:09]} 143. Bf5 {[%emt 0:00:08]} Rh6 {[%emt 0:00:27]} 144. Ka1 {[%emt 0:00:26]} Kb3 {[%emt 0:00:28]} 145. Be4 {[%emt 0:00:07]} Rd6 {[%emt 0:00:10]} 146. Bf5 {[%emt 0:00:21]} Rd1+ {[%emt 0:00:23]} 147. Bb1 {[%emt 0:00:03]} Rd2 {[%emt 0:00:04]} 148. Bf5 {[%emt 0:00:15]} Ra2+ {[%emt 0:00:06]} 149. Kb1 {[%emt 0:00:05]} Re2 {[%emt 0:00:23]} 150. Ka1 {[%emt 0:00:17]} Ka3 {[%emt 0:00:34]} 151. Kb1 {[%emt 0:00:43]} Re5 {[%emt 0:00:16]} 152. Bg6 {[%emt 0:00:15]} Rg5 {[%emt 0:00:15]} 153. Be4 {[%emt 0:00:25]} Kb3 {[%emt 0:00:06]} 154. Bc2+ {[%emt 0:00:03]} Kc3 {[%emt 0:00:04]} 155. Be4 {[%emt 0:00:09]} Rb5+ {[%emt 0:00:06]} 156. Ka1 {[%emt 0:00:15]} Kb3 {[%emt 0:00:05]} 157. Bg6 {[%emt 0:00:24]} Rb7 {[%emt 0:00:09]} 158. Bf5 {[%emt 0:00:13]} Re7 {[%emt 0:00:07]} 1/2-1/2